[Event "*** Titled Tuesday 3|2 Blitz"]
[Site "Chess.com"]
[Date "2017.06.06"]
[Round "3"]
[White "Spartakus1975"]
[Black "bilelou"]
[Result "1-0"]
[WhiteElo "2590"]
[BlackElo "2388"]
[TimeControl "180+2"]
[EndTime "14:26:44 PDT"]
[Termination "Spartakus1975 won by resignation"]

1. e4 {[%clk 0:02:34.6]} 1... c5 {[%clk 0:03:00.7]} 2. c3 {[%clk 0:02:35.3]}
2... d5 {[%clk 0:03:00.4]} 3. exd5 {[%clk 0:02:35.7]} 3... Qxd5 {[%clk
0:03:02.1]} 4. d4 {[%clk 0:02:37.2]} 4... Nc6 {[%clk 0:03:03]} 5. Nf3 {[%clk
0:02:38.3]} 5... Nf6 {[%clk 0:03:04.5]} 6. Na3 {[%clk 0:02:33.4]} 6... e6 {[%clk
0:03:03.5]} 7. Nb5 {[%clk 0:02:24.6]} 7... Qd8 {[%clk 0:03:00.5]} 8. dxc5 {[%clk
0:02:25.6]} 8... Bxc5 {[%clk 0:02:54.8]} 9. Qxd8+ {[%clk 0:02:25.9]} 9... Kxd8
{[%clk 0:02:54.9]} 10. Bf4 {[%clk 0:02:27.4]} 10... Nd5 {[%clk 0:02:50.5]} 11.
Bg3 {[%clk 0:02:27.6]} 11... a6 {[%clk 0:02:50.6]} 12. Nd6 {[%clk 0:02:27.1]}
12... Ke7 {[%clk 0:02:42.1]} 13. Ne4 {[%clk 0:02:26.3]} 13... Ba7 {[%clk
0:02:30.1]} 14. Bd6+ {[%clk 0:02:26.5]} 14... Ke8 {[%clk 0:02:29.5]} 15. Bc4
{[%clk 0:02:18.8]} 15... f6 {[%clk 0:02:23.3]} 16. Ba3 {[%clk 0:02:12.2]} 16...
Bb8 {[%clk 0:02:05]} 17. O-O-O {[%clk 0:02:07.2]} 17... Kf7 {[%clk 0:02:04.1]}
18. Nc5 {[%clk 0:01:47.9]} 18... Nce7 {[%clk 0:02:01.5]} 19. Rhe1 {[%clk
0:01:45.2]} 19... Rd8 {[%clk 0:02:01]} 20. Nd4 {[%clk 0:01:40.1]} 20... e5
{[%clk 0:01:51.7]} 21. Nc2 {[%clk 0:01:26.5]} 21... Kg6 {[%clk 0:01:15.2]} 22.
Nb4 {[%clk 0:01:12.6]} 22... Nxb4 {[%clk 0:00:59.6]} 23. Rxd8 {[%clk 0:01:11.9]}
23... Nbc6 {[%clk 0:01:00.9]} 24. Re8 {[%clk 0:00:55.1]} 24... b5 {[%clk
0:00:53.5]} 25. Bb3 {[%clk 0:00:46.6]} 25... Ra7 {[%clk 0:00:49.8]} 26. Ne4
{[%clk 0:00:37.8]} 26... b4 {[%clk 0:00:48.1]} 27. Bxb4 {[%clk 0:00:36.1]} 27...
Nxb4 {[%clk 0:00:48.4]} 28. cxb4 {[%clk 0:00:37.6]} 28... Rc7+ {[%clk
0:00:43.1]} 29. Kb1 {[%clk 0:00:36.1]} 29... Ba7 {[%clk 0:00:35.7]} 30. Rc1
{[%clk 0:00:27.7]} 30... Rxc1+ {[%clk 0:00:32.4]} 31. Kxc1 {[%clk 0:00:28.7]}
31... Bf5 {[%clk 0:00:18.9]} 32. Rxe7 {[%clk 0:00:28.9]} 32... Bd4 {[%clk
0:00:20.4]} 33. Bc2 {[%clk 0:00:25.2]} 33... Kh6 {[%clk 0:00:21.6]} 34. Ng3
{[%clk 0:00:21]} 34... Bxc2 {[%clk 0:00:20.7]} 35. Kxc2 {[%clk 0:00:21.8]} 35...
Bxf2 {[%clk 0:00:22.2]} 36. Nf5+ {[%clk 0:00:22.8]} 36... Kg6 {[%clk 0:00:23.7]}
37. Nxg7 {[%clk 0:00:23.4]} 37... f5 {[%clk 0:00:24.2]} 38. Rxe5 {[%clk
0:00:23.8]} 38... Bd4 {[%clk 0:00:24.1]} 39. Rxf5 {[%clk 0:00:24.3]} 39... Bxg7
{[%clk 0:00:24.3]} 40. Ra5 {[%clk 0:00:25]} 1-0

[Event "*** Titled Tuesday 3|2 Blitz"]
[Site "Chess.com"]
[Date "2017.06.06"]
[Round "3"]
[White "Jahonas"]
[Black "Setne007"]
[Result "1/2-1/2"]
[WhiteElo "2215"]
[BlackElo "2064"]
[TimeControl "180+2"]
[EndTime "14:26:50 PDT"]
[Termination "Game drawn by repetition"]

1. d4 {[%clk 0:03:02]} 1... e6 {[%clk 0:03:02]} 2. c4 {[%clk 0:03:00.6]} 2... d5
{[%clk 0:03:02.1]} 3. Nf3 {[%clk 0:03:01.3]} 3... Nf6 {[%clk 0:03:02.6]} 4. g3
{[%clk 0:03:01.8]} 4... Be7 {[%clk 0:03:03.5]} 5. Bg2 {[%clk 0:03:03]} 5... O-O
{[%clk 0:03:05.3]} 6. cxd5 {[%clk 0:03:03.5]} 6... exd5 {[%clk 0:03:05.3]} 7.
O-O {[%clk 0:03:04.5]} 7... h6 {[%clk 0:02:43.8]} 8. Nc3 {[%clk 0:03:03.9]} 8...
c6 {[%clk 0:02:43.9]} 9. b3 {[%clk 0:03:04.7]} 9... Be6 {[%clk 0:02:32.3]} 10.
Bb2 {[%clk 0:03:05.3]} 10... Nbd7 {[%clk 0:02:31.8]} 11. Rc1 {[%clk 0:03:06.2]}
11... Rc8 {[%clk 0:02:27.7]} 12. Re1 {[%clk 0:03:05.5]} 12... Bf5 {[%clk
0:02:24.1]} 13. Ne5 {[%clk 0:03:04]} 13... Bd6 {[%clk 0:02:21.9]} 14. e4 {[%clk
0:02:57.4]} 14... dxe4 {[%clk 0:02:11.9]} 15. Nxe4 {[%clk 0:02:57.6]} 15... Nxe4
{[%clk 0:01:49.4]} 16. Bxe4 {[%clk 0:02:37]} 16... Bxe4 {[%clk 0:01:41.2]} 17.
Nxd7 {[%clk 0:02:26.4]} 17... Bd5 {[%clk 0:01:17.7]} 18. Nxf8 {[%clk 0:02:17.8]}
18... Qxf8 {[%clk 0:01:09.7]} 19. Qg4 {[%clk 0:02:11.5]} 19... Rd8 {[%clk
0:01:06.9]} 20. Re3 {[%clk 0:02:09.1]} 20... f5 {[%clk 0:01:02]} 21. Qh5 {[%clk
0:02:03.1]} 21... f4 {[%clk 0:00:59.3]} 22. Re5 {[%clk 0:01:32.7]} 22... Bxe5
{[%clk 0:00:47.4]} 23. dxe5 {[%clk 0:01:32.8]} 23... fxg3 {[%clk 0:00:40.7]} 24.
hxg3 {[%clk 0:01:32.3]} 24... Bf3 {[%clk 0:00:38.5]} 25. Qg6 {[%clk 0:01:27.3]}
25... Qf7 {[%clk 0:00:19.8]} 26. Qxf7+ {[%clk 0:01:21.2]} 26... Kxf7 {[%clk
0:00:21]} 27. Bc3 {[%clk 0:01:09.8]} 27... Ke6 {[%clk 0:00:18.3]} 28. Re1 {[%clk
0:01:04.8]} 28... Rd3 {[%clk 0:00:16.4]} 29. Rc1 {[%clk 0:01:02.8]} 29... g5
{[%clk 0:00:10.5]} 30. Kf1 {[%clk 0:01:02.5]} 30... Rd1+ {[%clk 0:00:07.1]} 31.
Rxd1 {[%clk 0:01:02.7]} 31... Bxd1 {[%clk 0:00:09]} 32. Ke1 {[%clk 0:01:03.8]}
32... Bf3 {[%clk 0:00:09.2]} 33. Kd2 {[%clk 0:01:04.6]} 33... h5 {[%clk
0:00:05.7]} 34. Ke3 {[%clk 0:01:04.8]} 34... Bd5 {[%clk 0:00:05.1]} 35. f4
{[%clk 0:01:05]} 35... gxf4+ {[%clk 0:00:05.8]} 36. Kxf4 {[%clk 0:01:06.1]}
36... Bg2 {[%clk 0:00:02.4]} 37. Bd4 {[%clk 0:01:06.9]} 37... a6 {[%clk
0:00:02.1]} 38. b4 {[%clk 0:01:08]} 38... Bf1 {[%clk 0:00:02.8]} 39. a3 {[%clk
0:01:07.8]} 39... Be2 {[%clk 0:00:03.8]} 40. a4 {[%clk 0:01:08]} 40... Bd1
{[%clk 0:00:04.8]} 41. a5 {[%clk 0:01:09.1]} 41... Be2 {[%clk 0:00:06.3]} 42.
Bc5 {[%clk 0:01:10.2]} 42... Bd1 {[%clk 0:00:07.4]} 43. Bd6 {[%clk 0:01:11.4]}
43... Be2 {[%clk 0:00:08.9]} 44. Kg5 {[%clk 0:01:12.5]} 44... Bd1 {[%clk
0:00:10]} 45. Kf4 {[%clk 0:01:12.7]} 45... Be2 {[%clk 0:00:11.2]} 46. Kg5 {[%clk
0:01:13.5]} 46... Bd1 {[%clk 0:00:12.6]} 47. Kg6 {[%clk 0:01:13.5]} 47... Be2
{[%clk 0:00:13.4]} 48. Kg7 {[%clk 0:01:13.9]} 48... Bd1 {[%clk 0:00:12.1]} 49.
Kf8 {[%clk 0:01:06.6]} 49... Kd7 {[%clk 0:00:11.6]} 50. Kf7 {[%clk 0:01:04.2]}
50... Bg4 {[%clk 0:00:12.4]} 51. Kf6 {[%clk 0:01:05.1]} 51... Be6 {[%clk
0:00:11]} 52. Bc5 {[%clk 0:01:05.9]} 52... Bg4 {[%clk 0:00:11.6]} 53. Bd6 {[%clk
0:01:03.3]} 53... Be6 {[%clk 0:00:12.5]} 54. Bc5 {[%clk 0:01:04.4]} 54... Bg4
{[%clk 0:00:13.6]} 55. Bd6 {[%clk 0:01:05.6]} 1/2-1/2

[Event "*** Titled Tuesday 3|2 Blitz"]
[Site "Chess.com"]
[Date "2017.06.06"]
[Round "3"]
[White "yian123"]
[Black "Noukii"]
[Result "0-1"]
[WhiteElo "2388"]
[BlackElo "2615"]
[TimeControl "180+2"]
[EndTime "14:26:51 PDT"]
[Termination "Noukii won by resignation"]

1. e4 {[%clk 0:03:02]} 1... e5 {[%clk 0:02:57.9]} 2. Nf3 {[%clk 0:03:02]} 2...
Nc6 {[%clk 0:02:59.4]} 3. Bb5 {[%clk 0:03:02.3]} 3... a6 {[%clk 0:02:59.6]} 4.
Ba4 {[%clk 0:02:59.7]} 4... Nf6 {[%clk 0:03:00.7]} 5. O-O {[%clk 0:02:56.2]}
5... Be7 {[%clk 0:03:00.1]} 6. Re1 {[%clk 0:02:56.7]} 6... b5 {[%clk 0:03:00.7]}
7. Bb3 {[%clk 0:02:57.2]} 7... d6 {[%clk 0:03:02.2]} 8. c3 {[%clk 0:02:56.6]}
8... O-O {[%clk 0:03:03.7]} 9. h3 {[%clk 0:02:56.8]} 9... Na5 {[%clk 0:03:04.1]}
10. Bc2 {[%clk 0:02:57.4]} 10... c5 {[%clk 0:03:05.7]} 11. d4 {[%clk 0:02:57.2]}
11... Nd7 {[%clk 0:03:07]} 12. Nbd2 {[%clk 0:02:52]} 12... exd4 {[%clk 0:03:08]}
13. cxd4 {[%clk 0:02:52.5]} 13... Nc6 {[%clk 0:03:09.6]} 14. d5 {[%clk 0:02:53]}
14... Nce5 {[%clk 0:03:10.5]} 15. Nxe5 {[%clk 0:02:53.4]} 15... Nxe5 {[%clk
0:03:12.4]} 16. f4 {[%clk 0:02:53.3]} 16... Ng6 {[%clk 0:03:13.3]} 17. Nf3
{[%clk 0:02:54]} 17... Bh4 {[%clk 0:03:06.8]} 18. Rf1 {[%clk 0:02:34.9]} 18...
Bg3 {[%clk 0:03:06.5]} 19. f5 {[%clk 0:02:35]} 19... Ne5 {[%clk 0:03:07.3]} 20.
Ng5 {[%clk 0:02:36.5]} 20... Qf6 {[%clk 0:02:46.5]} 21. Rb1 {[%clk 0:00:43.2]}
21... h6 {[%clk 0:02:40.3]} 22. Nf3 {[%clk 0:00:41.9]} 22... Nxf3+ {[%clk
0:02:41.4]} 23. Qxf3 {[%clk 0:00:42.5]} 23... Be5 {[%clk 0:02:42.7]} 24. b3
{[%clk 0:00:43.2]} 24... Bd7 {[%clk 0:02:41.1]} 25. Bd2 {[%clk 0:00:40.1]} 25...
Rfe8 {[%clk 0:02:33.8]} 26. g4 {[%clk 0:00:40.6]} 26... c4 {[%clk 0:02:19.7]}
27. bxc4 {[%clk 0:00:33.8]} 27... bxc4 {[%clk 0:02:21.6]} 28. Kg2 {[%clk
0:00:31.5]} 28... c3 {[%clk 0:02:20]} 29. Be3 {[%clk 0:00:31.5]} 29... Rab8
{[%clk 0:02:16.9]} 30. Bd3 {[%clk 0:00:30.6]} 30... Rb2+ {[%clk 0:02:17.1]} 31.
Rf2 {[%clk 0:00:26.2]} 31... Reb8 {[%clk 0:02:13.5]} 32. Rf1 {[%clk 0:00:23]}
32... a5 {[%clk 0:02:05.4]} 33. Ba7 {[%clk 0:00:18.3]} 33... R8b7 {[%clk
0:02:05.1]} 34. Be3 {[%clk 0:00:19.2]} 34... a4 {[%clk 0:02:06.5]} 35. Bc1
{[%clk 0:00:20.2]} 35... a3 {[%clk 0:02:05.1]} 36. Bxb2 {[%clk 0:00:21]} 36...
axb2 {[%clk 0:02:06.3]} 37. Bc2 {[%clk 0:00:21.1]} 37... Bb5 {[%clk 0:02:02.6]}
38. Bd3 {[%clk 0:00:17]} 38... Ba4 {[%clk 0:02:02.2]} 39. Rb1 {[%clk 0:00:15.9]}
39... Bd4 {[%clk 0:02:00.8]} 40. Re2 {[%clk 0:00:16.3]} 40... Qe5 {[%clk
0:02:02.1]} 41. Bc2 {[%clk 0:00:17]} 41... Bd7 {[%clk 0:01:57.7]} 42. a4 {[%clk
0:00:16.8]} 42... Ra7 {[%clk 0:01:58.8]} 43. Qd3 {[%clk 0:00:16.9]} 43... Bxa4
{[%clk 0:01:57.1]} 44. Bxa4 {[%clk 0:00:17.7]} 44... Rxa4 {[%clk 0:01:59]} 45.
Qc2 {[%clk 0:00:17.3]} 45... Qf4 {[%clk 0:01:52.7]} 46. Qxa4 {[%clk 0:00:16.4]}
46... Be5 {[%clk 0:01:53.9]} 47. Qc2 {[%clk 0:00:15.2]} 47... Qh2+ {[%clk
0:01:53]} 48. Kf1 {[%clk 0:00:15.1]} 48... Qxh3+ {[%clk 0:01:47.1]} 49. Rg2
{[%clk 0:00:16.1]} 49... Qf3+ {[%clk 0:01:46.9]} 50. Ke1 {[%clk 0:00:10.6]}
50... Qe3+ {[%clk 0:01:32.5]} 51. Qe2 {[%clk 0:00:10.1]} 51... c2 {[%clk
0:01:32.1]} 52. Qxe3 {[%clk 0:00:11.2]} 52... cxb1=Q+ {[%clk 0:01:33.1]} 53. Kf2
{[%clk 0:00:12.4]} 53... Qc2+ {[%clk 0:01:33.7]} 54. Kf3 {[%clk 0:00:13.7]}
54... Qxg2+ {[%clk 0:01:34.2]} 55. Kxg2 {[%clk 0:00:15.6]} 55... b1=Q {[%clk
0:01:35.7]} 56. Qe2 {[%clk 0:00:16.7]} 56... Qb2 {[%clk 0:01:37]} 57. Qxb2
{[%clk 0:00:17.4]} 57... Bxb2 {[%clk 0:01:38.9]} 58. Kf3 {[%clk 0:00:18.5]}
58... Be5 {[%clk 0:01:40.4]} 0-1

[Event "*** Titled Tuesday 3|2 Blitz"]
[Site "Chess.com"]
[Date "2017.06.06"]
[Round "3"]
[White "Alexander_Moskalenko"]
[Black "gmcorrales"]
[Result "1-0"]
[WhiteElo "2689"]
[BlackElo "2544"]
[TimeControl "180+2"]
[EndTime "14:27:03 PDT"]
[Termination "Alexander_Moskalenko won on time"]

1. e4 {[%clk 0:03:02]} 1... c5 {[%clk 0:03:00.2]} 2. Nf3 {[%clk 0:03:01.6]} 2...
d6 {[%clk 0:03:01.5]} 3. Bb5+ {[%clk 0:03:01.6]} 3... Nd7 {[%clk 0:03:00.7]} 4.
O-O {[%clk 0:03:00.2]} 4... a6 {[%clk 0:03:00.3]} 5. Bd3 {[%clk 0:03:00.5]} 5...
g6 {[%clk 0:02:28.9]} 6. c3 {[%clk 0:03:00.6]} 6... Bg7 {[%clk 0:02:29.1]} 7.
Re1 {[%clk 0:03:01.4]} 7... e5 {[%clk 0:02:30.1]} 8. a4 {[%clk 0:03:01]} 8...
Ngf6 {[%clk 0:02:30.2]} 9. Bf1 {[%clk 0:03:01.6]} 9... O-O {[%clk 0:02:29.8]}
10. d4 {[%clk 0:03:02.7]} 10... Re8 {[%clk 0:02:27]} 11. dxe5 {[%clk 0:03:03.6]}
11... Nxe5 {[%clk 0:02:27.7]} 12. Nxe5 {[%clk 0:03:04.5]} 12... dxe5 {[%clk
0:02:24.9]} 13. Qxd8 {[%clk 0:02:51]} 13... Rxd8 {[%clk 0:02:25.6]} 14. a5
{[%clk 0:02:46.9]} 14... Be6 {[%clk 0:02:24.5]} 15. Na3 {[%clk 0:02:45.5]} 15...
Ne8 {[%clk 0:01:09.4]} 16. Be3 {[%clk 0:02:41.6]} 16... Rac8 {[%clk 0:01:09.1]}
17. Bc4 {[%clk 0:02:41.2]} 17... Bxc4 {[%clk 0:01:06.1]} 18. Nxc4 {[%clk
0:02:41.7]} 18... Nd6 {[%clk 0:01:07.1]} 19. Nb6 {[%clk 0:02:42.2]} 19... Rc6
{[%clk 0:01:04.8]} 20. Red1 {[%clk 0:02:40.6]} 20... Re8 {[%clk 0:01:05.7]} 21.
f3 {[%clk 0:02:30.3]} 21... f5 {[%clk 0:01:06.4]} 22. exf5 {[%clk 0:02:30.7]}
22... gxf5 {[%clk 0:01:08.3]} 23. Rd5 {[%clk 0:02:30.7]} 23... c4 {[%clk
0:01:06.4]} 24. Rad1 {[%clk 0:02:27.2]} 24... Bf8 {[%clk 0:01:05.6]} 25. g4
{[%clk 0:02:15]} 25... f4 {[%clk 0:01:02]} 26. Bc5 {[%clk 0:02:14.7]} 26... Nf7
{[%clk 0:01:02.6]} 27. Bxf8 {[%clk 0:02:01.5]} 27... Kxf8 {[%clk 0:01:04.5]} 28.
Re1 {[%clk 0:01:56.2]} 28... h5 {[%clk 0:00:57.5]} 29. h3 {[%clk 0:01:49.9]}
29... hxg4 {[%clk 0:00:58.1]} 30. hxg4 {[%clk 0:01:50.8]} 30... Re7 {[%clk
0:00:55]} 31. Kg2 {[%clk 0:01:48.3]} 31... Kg7 {[%clk 0:00:55.3]} 32. Re4 {[%clk
0:01:43.2]} 32... Rec7 {[%clk 0:00:12.2]} 33. Rd7 {[%clk 0:00:39.8]} 33... Rxb6
{[%clk 0:00:12]} 34. Rxc7 {[%clk 0:00:40]} 34... Rxb2+ {[%clk 0:00:13.9]} 35.
Kf1 {[%clk 0:00:41.4]} 35... Kf6 {[%clk 0:00:14.8]} 36. Rxf7+ {[%clk 0:00:37.6]}
36... Kxf7 {[%clk 0:00:15.6]} 37. Rxe5 {[%clk 0:00:39.3]} 37... Rb3 {[%clk
0:00:14.6]} 38. Rf5+ {[%clk 0:00:37.5]} 38... Ke6 {[%clk 0:00:15.8]} 39. Rxf4
{[%clk 0:00:39.4]} 39... Rxc3 {[%clk 0:00:17.1]} 40. Kf2 {[%clk 0:00:38.2]}
40... Kd5 {[%clk 0:00:16.4]} 41. g5 {[%clk 0:00:34.5]} 41... Rc2+ {[%clk
0:00:14.6]} 42. Ke3 {[%clk 0:00:33.2]} 42... c3 {[%clk 0:00:15.7]} 43. Rg4
{[%clk 0:00:30.2]} 43... Rd2 {[%clk 0:00:15.1]} 44. g6 {[%clk 0:00:29]} 44...
Rd1 {[%clk 0:00:09.8]} 45. g7 {[%clk 0:00:29.4]} 1-0

[Event "*** Titled Tuesday 3|2 Blitz"]
[Site "Chess.com"]
[Date "2017.06.06"]
[Round "3"]
[White "TregubovP"]
[Black "GMHess"]
[Result "0-1"]
[WhiteElo "2421"]
[BlackElo "2609"]
[TimeControl "180+2"]
[EndTime "14:27:04 PDT"]
[Termination "GMHess won by resignation"]

1. d4 {[%clk 0:03:00.1]} 1... d6 {[%clk 0:03:00.6]} 2. Nf3 {[%clk 0:03:00]} 2...
Nf6 {[%clk 0:02:54.6]} 3. g3 {[%clk 0:02:59.3]} 3... g6 {[%clk 0:02:55.3]} 4.
Bg2 {[%clk 0:03:00.9]} 4... Bg7 {[%clk 0:02:56.7]} 5. c4 {[%clk 0:03:02.5]} 5...
O-O {[%clk 0:02:58.4]} 6. O-O {[%clk 0:03:03.4]} 6... Bf5 {[%clk 0:02:56.5]} 7.
Nc3 {[%clk 0:03:03.8]} 7... Ne4 {[%clk 0:02:57.2]} 8. Bd2 {[%clk 0:03:00.1]}
8... Nxc3 {[%clk 0:02:52.8]} 9. Bxc3 {[%clk 0:03:00.5]} 9... Be4 {[%clk
0:02:54.3]} 10. Qd2 {[%clk 0:03:01]} 10... c6 {[%clk 0:02:48]} 11. Rfd1 {[%clk
0:02:58.9]} 11... d5 {[%clk 0:02:48.4]} 12. b3 {[%clk 0:02:56.4]} 12... Nd7
{[%clk 0:02:47]} 13. Rac1 {[%clk 0:02:53.4]} 13... e6 {[%clk 0:02:47.2]} 14. Bf1
{[%clk 0:02:50.6]} 14... Bxf3 {[%clk 0:02:38]} 15. exf3 {[%clk 0:02:50.9]} 15...
Qf6 {[%clk 0:02:36.8]} 16. f4 {[%clk 0:02:50.5]} 16... Rfd8 {[%clk 0:02:35.1]}
17. c5 {[%clk 0:02:43.7]} 17... b6 {[%clk 0:02:25]} 18. b4 {[%clk 0:02:44.1]}
18... b5 {[%clk 0:02:25.3]} 19. a4 {[%clk 0:02:42.1]} 19... a6 {[%clk
0:02:26.3]} 20. Ra1 {[%clk 0:02:41.7]} 20... Qf5 {[%clk 0:02:22.1]} 21. Ra2
{[%clk 0:02:38.9]} 21... Nf6 {[%clk 0:02:20.1]} 22. f3 {[%clk 0:02:38]} 22...
Ne8 {[%clk 0:02:04.3]} 23. Rda1 {[%clk 0:02:38.2]} 23... Nc7 {[%clk 0:02:05.6]}
24. Qe3 {[%clk 0:02:32.3]} 24... Qf6 {[%clk 0:01:59.3]} 25. h4 {[%clk
0:02:14.2]} 25... Rdb8 {[%clk 0:01:53.9]} 26. Bd3 {[%clk 0:02:12.4]} 26... a5
{[%clk 0:00:58.9]} 27. axb5 {[%clk 0:02:08.3]} 27... axb4 {[%clk 0:00:59.4]} 28.
Rxa8 {[%clk 0:02:08.8]} 28... Nxa8 {[%clk 0:00:48.6]} 29. Bb2 {[%clk 0:02:02.9]}
29... cxb5 {[%clk 0:00:48.5]} 30. Ra7 {[%clk 0:01:45.2]} 30... Qd8 {[%clk
0:00:45.7]} 31. h5 {[%clk 0:01:44.9]} 31... Nc7 {[%clk 0:00:44.5]} 32. hxg6
{[%clk 0:01:36.4]} 32... hxg6 {[%clk 0:00:46.4]} 33. Kg2 {[%clk 0:01:36.9]}
33... Ra8 {[%clk 0:00:46.9]} 34. Rxa8 {[%clk 0:01:29.5]} 34... Qxa8 {[%clk
0:00:48.8]} 35. Qd2 {[%clk 0:01:27.1]} 35... Qa4 {[%clk 0:00:42.7]} 36. g4
{[%clk 0:01:23.8]} 36... b3 {[%clk 0:00:41.1]} 37. f5 {[%clk 0:01:24.5]} 37...
Bxd4 {[%clk 0:00:35.9]} 38. fxg6 {[%clk 0:01:08.7]} 38... Bxb2 {[%clk
0:00:24.3]} 39. Qh6 {[%clk 0:01:09.2]} 39... Bg7 {[%clk 0:00:19]} 40. gxf7+
{[%clk 0:01:08.5]} 40... Kf8 {[%clk 0:00:12.3]} 41. Qg5 {[%clk 0:01:07.9]} 41...
Qa8 {[%clk 0:00:08.7]} 42. Bg6 {[%clk 0:01:05.2]} 42... b2 {[%clk 0:00:09.5]}
43. c6 {[%clk 0:01:02]} 43... b1=Q {[%clk 0:00:05.6]} 44. Bxb1 {[%clk 0:01:02]}
44... Qxc6 {[%clk 0:00:06.3]} 45. Bg6 {[%clk 0:01:02.6]} 45... Qd6 {[%clk
0:00:06.6]} 46. Qd2 {[%clk 0:00:56.3]} 46... e5 {[%clk 0:00:07.1]} 47. Bh5
{[%clk 0:00:56.3]} 47... Ne6 {[%clk 0:00:07.7]} 0-1

[Event "*** Titled Tuesday 3|2 Blitz"]
[Site "Chess.com"]
[Date "2017.06.06"]
[Round "3"]
[White "LawrenceTrent"]
[Black "XDPS"]
[Result "0-1"]
[WhiteElo "2415"]
[BlackElo "2519"]
[TimeControl "180+2"]
[EndTime "14:27:14 PDT"]
[Termination "XDPS won by resignation"]

1. e4 {[%clk 0:02:53.3]} 1... c5 {[%clk 0:03:00.2]} 2. Nf3 {[%clk 0:02:52]} 2...
d6 {[%clk 0:03:01.2]} 3. d4 {[%clk 0:02:53]} 3... cxd4 {[%clk 0:03:02.5]} 4.
Nxd4 {[%clk 0:02:54.5]} 4... Nf6 {[%clk 0:03:04.2]} 5. Nc3 {[%clk 0:02:55.8]}
5... a6 {[%clk 0:03:05.9]} 6. h4 {[%clk 0:02:55.7]} 6... e5 {[%clk 0:02:59.6]}
7. Nb3 {[%clk 0:02:55.8]} 7... Be6 {[%clk 0:02:59.2]} 8. f4 {[%clk 0:02:57.1]}
8... Nbd7 {[%clk 0:02:58.5]} 9. f5 {[%clk 0:02:55.8]} 9... Bxb3 {[%clk
0:02:59.4]} 10. axb3 {[%clk 0:02:56.9]} 10... Rc8 {[%clk 0:03:00]} 11. Qf3
{[%clk 0:02:46.8]} 11... h5 {[%clk 0:03:00.1]} 12. Bc4 {[%clk 0:02:39.5]} 12...
Nb6 {[%clk 0:03:00.7]} 13. Bd3 {[%clk 0:02:39.4]} 13... Be7 {[%clk 0:02:58.6]}
14. Bg5 {[%clk 0:02:39.8]} 14... Ng4 {[%clk 0:02:58.3]} 15. Bxe7 {[%clk
0:02:28.8]} 15... Qxe7 {[%clk 0:03:00.2]} 16. Na4 {[%clk 0:02:18.1]} 16... Nxa4
{[%clk 0:02:57.2]} 17. Rxa4 {[%clk 0:02:20]} 17... O-O {[%clk 0:02:49.7]} 18.
Ra1 {[%clk 0:02:03]} 18... Qd8 {[%clk 0:02:48.7]} 19. Rc1 {[%clk 0:01:06.1]}
19... d5 {[%clk 0:02:48.5]} 20. Be2 {[%clk 0:00:59.9]} 20... Qa5+ {[%clk
0:02:13.5]} 21. c3 {[%clk 0:01:00.6]} 21... dxe4 {[%clk 0:02:09.9]} 22. Qxe4
{[%clk 0:01:01.1]} 22... Nf6 {[%clk 0:02:11.5]} 23. Qxb7 {[%clk 0:01:01.3]}
23... e4 {[%clk 0:02:09.4]} 24. Qxa6 {[%clk 0:01:00.5]} 24... Qxf5 {[%clk
0:02:09.8]} 25. Qb6 {[%clk 0:00:53.2]} 25... Qf4 {[%clk 0:02:03.1]} 26. Rd1
{[%clk 0:00:45.2]} 26... e3 {[%clk 0:02:04]} 27. Rd3 {[%clk 0:00:40.3]} 27...
Rfe8 {[%clk 0:01:50.9]} 28. Kd1 {[%clk 0:00:28.9]} 28... Ne4 {[%clk 0:01:49.4]}
29. Rf1 {[%clk 0:00:23]} 29... Nf2+ {[%clk 0:01:50.2]} 30. Kc2 {[%clk
0:00:20.4]} 30... Rb8 {[%clk 0:01:51.1]} 31. Qc5 {[%clk 0:00:18.3]} 31... g6
{[%clk 0:01:51.8]} 32. Rd4 {[%clk 0:00:15.9]} 32... Qg3 {[%clk 0:01:48.9]} 33.
b4 {[%clk 0:00:13.4]} 33... Qxg2 {[%clk 0:01:47.6]} 34. Qd5 {[%clk 0:00:14.5]}
34... Qh2 {[%clk 0:01:39]} 35. Qf3 {[%clk 0:00:15.2]} 35... Re7 {[%clk
0:01:31.8]} 36. Kb1 {[%clk 0:00:16.6]} 36... Qe5 {[%clk 0:01:25.5]} 37. b5
{[%clk 0:00:17.6]} 37... Qc5 {[%clk 0:01:18.9]} 38. Rc4 {[%clk 0:00:17.8]} 38...
Qd6 {[%clk 0:01:14.4]} 39. Rc6 {[%clk 0:00:18.6]} 39... Qd2 {[%clk 0:01:15.2]}
40. Bc4 {[%clk 0:00:19.6]} 40... Kh7 {[%clk 0:01:05.4]} 41. Qf6 {[%clk
0:00:17.9]} 41... Ra7 {[%clk 0:00:50]} 42. Ra6 {[%clk 0:00:15.2]} 42... Rxa6
{[%clk 0:00:45.2]} 43. Qxa6 {[%clk 0:00:08.3]} 43... e2 {[%clk 0:00:44.4]} 44.
Bxe2 {[%clk 0:00:09.5]} 44... Qxe2 {[%clk 0:00:45.3]} 45. Qf6 {[%clk 0:00:11]}
45... Qxf1+ {[%clk 0:00:45.9]} 0-1